[Event "Early-Titled-Tuesday-Blitz-March-19-2024"]
[Site "Chess.com"]
[Date "2024.03.19"]
[Round "11"]
[White "VD_coach"]
[Black "chessjazda"]
[Result "0-1"]
[WhiteElo "2504"]
[BlackElo "2290"]
[TimeControl "180+1"]
[EndTime "10:07:09 PDT"]
[Termination "chessjazda won on time"]

1. Nf3 {[%clk 0:03:00.9]} 1... d6 {[%clk 0:01:24.2]} 2. d4 {[%clk 0:03:00]} 2...
g6 {[%clk 0:01:24.1]} 3. c4 {[%clk 0:02:59.4]} 3... Bg7 {[%clk 0:01:22.9]} 4.
Nc3 {[%clk 0:03:00.3]} 4... Nf6 {[%clk 0:01:22.9]} 5. g3 {[%clk 0:03:00.4]} 5...
c6 {[%clk 0:01:22.5]} 6. Bg2 {[%clk 0:03:00]} 6... O-O {[%clk 0:01:23.1]} 7. O-O
{[%clk 0:02:58.7]} 7... Qc7 {[%clk 0:01:23.4]} 8. Bf4 {[%clk 0:02:52.1]} 8...
Nbd7 {[%clk 0:01:23.9]} 9. c5 {[%clk 0:02:52.3]} 9... h6 {[%clk 0:01:18.2]} 10.
Rc1 {[%clk 0:02:50.6]} 10... g5 {[%clk 0:01:14.8]} 11. cxd6 {[%clk 0:02:44.8]}
11... exd6 {[%clk 0:01:14.4]} 12. Bd2 {[%clk 0:02:35.3]} 12... Nb6 {[%clk
0:01:11.2]} 13. a4 {[%clk 0:02:28.4]} 13... Re8 {[%clk 0:01:10.1]} 14. a5 {[%clk
0:02:28.2]} 14... Nc4 {[%clk 0:01:09.5]} 15. b3 {[%clk 0:02:17.8]} 15... Nxa5
{[%clk 0:01:08.3]} 16. Nb5 {[%clk 0:02:17.6]} 16... Qd8 {[%clk 0:01:05.5]} 17.
Bxa5 {[%clk 0:02:15]} 17... Qxa5 {[%clk 0:01:01.6]} 18. Nxd6 {[%clk 0:02:15.1]}
18... Re6 {[%clk 0:01:01.8]} 19. Nc4 {[%clk 0:02:08.9]} 19... Qb4 {[%clk
0:01:02]} 20. Nfe5 {[%clk 0:02:05.2]} 20... Nd5 {[%clk 0:00:59.5]} 21. e4 {[%clk
0:01:54.2]} 21... Ne7 {[%clk 0:00:47.3]} 22. Nd3 {[%clk 0:01:44]} 22... Qb5
{[%clk 0:00:45.4]} 23. d5 {[%clk 0:01:44.2]} 23... cxd5 {[%clk 0:00:44.3]} 24.
exd5 {[%clk 0:01:44]} 24... Nxd5 {[%clk 0:00:44.4]} 25. Re1 {[%clk 0:01:40.4]}
25... Nc3 {[%clk 0:00:42.8]} 26. Qc2 {[%clk 0:01:22.3]} 26... Bd7 {[%clk
0:00:41]} 27. Rxe6 {[%clk 0:01:10.6]} 27... Bxe6 {[%clk 0:00:41.7]} 28. Nd6
{[%clk 0:01:08.8]} 28... Qd7 {[%clk 0:00:37.2]} 29. Nxb7 {[%clk 0:01:05.3]}
29... Rc8 {[%clk 0:00:36]} 30. Ndc5 {[%clk 0:00:54.1]} 30... Qb5 {[%clk
0:00:33]} 31. h4 {[%clk 0:00:19.2]} 31... Rxc5 {[%clk 0:00:29.3]} 32. Nxc5
{[%clk 0:00:18.3]} 32... Qxc5 {[%clk 0:00:29.5]} 33. hxg5 {[%clk 0:00:15.7]}
33... hxg5 {[%clk 0:00:29.2]} 34. Kh2 {[%clk 0:00:15.5]} 34... Qb4 {[%clk
0:00:28.1]} 35. Ra1 {[%clk 0:00:14.5]} 35... a5 {[%clk 0:00:27.1]} 36. Re1
{[%clk 0:00:14.3]} 36... Qd4 {[%clk 0:00:23.8]} 37. Re3 {[%clk 0:00:13.3]} 37...
Nd1 {[%clk 0:00:23.1]} 38. Rd3 {[%clk 0:00:12.1]} 38... Qxf2 {[%clk 0:00:23.3]}
39. Qxd1 {[%clk 0:00:10]} 39... Be5 {[%clk 0:00:20.5]} 40. Qf1 {[%clk
0:00:07.8]} 40... Qb6 {[%clk 0:00:14.7]} 41. Qh1 {[%clk 0:00:08]} 41... Qc7
{[%clk 0:00:13.9]} 42. Qg1 {[%clk 0:00:06.4]} 42... g4 {[%clk 0:00:07.3]} 43.
Qe3 {[%clk 0:00:05.8]} 43... f6 {[%clk 0:00:06.9]} 44. Rd2 {[%clk 0:00:05.6]}
44... Qh7+ {[%clk 0:00:07.1]} 45. Kg1 {[%clk 0:00:04.7]} 45... Qb1+ {[%clk
0:00:07.8]} 46. Bf1 {[%clk 0:00:04.4]} 46... Qf5 {[%clk 0:00:07]} 47. Rd8+
{[%clk 0:00:04.4]} 47... Kg7 {[%clk 0:00:06.8]} 48. Qf2 {[%clk 0:00:04.9]} 48...
Qe4 {[%clk 0:00:06.2]} 49. Bg2 {[%clk 0:00:04.5]} 49... Qb1+ {[%clk 0:00:06.3]}
50. Kh2 {[%clk 0:00:04.8]} 50... Qxb3 {[%clk 0:00:06.8]} 51. Qd2 {[%clk
0:00:03.5]} 51... Qxg3+ {[%clk 0:00:06.6]} 52. Kg1 {[%clk 0:00:03.9]} 52... Bf5
{[%clk 0:00:06]} 53. Rd7+ {[%clk 0:00:03]} 53... Kg6 {[%clk 0:00:05.9]} 0-1

[Event "Early-Titled-Tuesday-Blitz-March-19-2024"]
[Site "Chess.com"]
[Date "2024.03.19"]
[Round "11"]
[White "lamomiajunior"]
[Black "DonkyDonkyDonkey"]
[Result "1-0"]
[WhiteElo "2780"]
[BlackElo "2972"]
[TimeControl "180+1"]
[EndTime "10:07:13 PDT"]
[Termination "lamomiajunior won on time"]

1. d4 {[%clk 0:03:00.9]} 1... Nf6 {[%clk 0:03:00]} 2. c4 {[%clk 0:03:01.5]} 2...
e6 {[%clk 0:03:00.1]} 3. Nc3 {[%clk 0:03:02.1]} 3... Bb4 {[%clk 0:03:00.3]} 4.
e3 {[%clk 0:03:02.1]} 4... O-O {[%clk 0:03:00.6]} 5. Bd2 {[%clk 0:03:02]} 5...
b6 {[%clk 0:02:57.6]} 6. Nf3 {[%clk 0:03:01.8]} 6... d5 {[%clk 0:02:57.8]} 7.
cxd5 {[%clk 0:03:01.5]} 7... exd5 {[%clk 0:02:57.9]} 8. Bd3 {[%clk 0:03:01.9]}
8... Bb7 {[%clk 0:02:58.1]} 9. Rc1 {[%clk 0:03:02.1]} 9... Be7 {[%clk
0:02:56.7]} 10. Ne5 {[%clk 0:03:00.6]} 10... c5 {[%clk 0:02:57.1]} 11. O-O
{[%clk 0:03:00.7]} 11... Nc6 {[%clk 0:02:54.4]} 12. Ne2 {[%clk 0:03:00.7]} 12...
Rc8 {[%clk 0:02:53.8]} 13. f4 {[%clk 0:03:00.4]} 13... Bd6 {[%clk 0:02:51.2]}
14. Bc3 {[%clk 0:02:54.9]} 14... Re8 {[%clk 0:02:50.8]} 15. Ng3 {[%clk
0:02:54.8]} 15... cxd4 {[%clk 0:02:26.1]} 16. exd4 {[%clk 0:02:52.9]} 16... b5
{[%clk 0:02:24.2]} 17. Bxb5 {[%clk 0:02:44.5]} 17... Qb6 {[%clk 0:02:24.4]} 18.
Bxc6 {[%clk 0:02:34.2]} 18... Bxc6 {[%clk 0:02:24.7]} 19. Kh1 {[%clk 0:02:34.7]}
19... Bb5 {[%clk 0:02:24.2]} 20. Re1 {[%clk 0:02:34.4]} 20... Ba6 {[%clk
0:02:14.6]} 21. Qf3 {[%clk 0:02:28.2]} 21... Ne4 {[%clk 0:02:06]} 22. Nxe4
{[%clk 0:02:26.6]} 22... dxe4 {[%clk 0:02:06.9]} 23. Qxe4 {[%clk 0:02:26.8]}
23... Bb7 {[%clk 0:02:07.2]} 24. Qd3 {[%clk 0:02:05.7]} 24... f6 {[%clk
0:02:05.7]} 25. Nf3 {[%clk 0:02:03.9]} 25... Bxf4 {[%clk 0:02:04.4]} 26. Rcd1
{[%clk 0:02:04]} 26... Bd5 {[%clk 0:02:03.7]} 27. Qf5 {[%clk 0:01:58.7]} 27...
Bxf3 {[%clk 0:01:50.4]} 28. gxf3 {[%clk 0:01:59.6]} 28... Qd6 {[%clk 0:01:47.1]}
29. d5 {[%clk 0:01:56.3]} 29... Bxh2 {[%clk 0:01:37.8]} 30. Re6 {[%clk
0:01:45.6]} 30... Qg3 {[%clk 0:01:38]} 31. d6 {[%clk 0:01:29.6]} 31... Qh4
{[%clk 0:01:05.4]} 32. Kg2 {[%clk 0:01:21]} 32... Bf4 {[%clk 0:00:57.9]} 33. Rd3
{[%clk 0:00:35.4]} 33... g6 {[%clk 0:00:39.3]} 34. d7 {[%clk 0:00:26.6]} 34...
Rf8 {[%clk 0:00:18.1]} 35. Qh3 {[%clk 0:00:18.8]} 35... Qg5+ {[%clk 0:00:16.4]}
36. Qg4 {[%clk 0:00:19.1]} 36... Rcd8 {[%clk 0:00:15.1]} 37. Qxg5 {[%clk
0:00:17.7]} 37... Bxg5 {[%clk 0:00:16]} 38. Ba5 {[%clk 0:00:17.9]} 38... Kf7
{[%clk 0:00:14.8]} 39. Rc6 {[%clk 0:00:11.6]} 39... f5 {[%clk 0:00:11.3]} 40. f4
{[%clk 0:00:11.1]} 40... Bh4 {[%clk 0:00:09.3]} 41. Bxd8 {[%clk 0:00:11.4]}
41... Bxd8 {[%clk 0:00:10.2]} 42. Rc8 {[%clk 0:00:10.7]} 42... h6 {[%clk
0:00:09.7]} 43. Kf3 {[%clk 0:00:10.9]} 43... g5 {[%clk 0:00:10.1]} 44. fxg5
{[%clk 0:00:09.5]} 44... hxg5 {[%clk 0:00:11]} 45. Rc5 {[%clk 0:00:08]} 45...
Kg6 {[%clk 0:00:10.1]} 46. Rd6+ {[%clk 0:00:07.8]} 46... Kh5 {[%clk 0:00:10.7]}
47. Rcc6 {[%clk 0:00:06.5]} 47... g4+ {[%clk 0:00:10.6]} 48. Kg3 {[%clk
0:00:06.6]} 48... f4+ {[%clk 0:00:10.7]} 49. Kg2 {[%clk 0:00:05.9]} 49... f3+
{[%clk 0:00:11.2]} 50. Kf1 {[%clk 0:00:05.5]} 50... g3 {[%clk 0:00:11.2]} 51.
Rh6+ {[%clk 0:00:05.9]} 51... Kg4 {[%clk 0:00:11.6]} 52. Rhg6+ {[%clk
0:00:06.3]} 52... Kh3 {[%clk 0:00:10.6]} 53. Rh6+ {[%clk 0:00:06.4]} 53... Bh4
{[%clk 0:00:10.6]} 54. Rxh4+ {[%clk 0:00:05.3]} 54... Kxh4 {[%clk 0:00:11.5]}
55. Rc8 {[%clk 0:00:05.7]} 55... g2+ {[%clk 0:00:09.6]} 56. Kf2 {[%clk
0:00:05.8]} 1-0

[Event "Early-Titled-Tuesday-Blitz-March-19-2024"]
[Site "Chess.com"]
[Date "2024.03.19"]
[Round "11"]
[White "djano"]
[Black "malakismayil"]
[Result "1-0"]
[WhiteElo "2631"]
[BlackElo "2526"]
[TimeControl "180+1"]
[EndTime "10:07:14 PDT"]
[Termination "djano won on time"]

1. e4 {[%clk 0:02:57.6]} 1... e5 {[%clk 0:02:58.4]} 2. d4 {[%clk 0:02:56.7]}
2... exd4 {[%clk 0:02:58.3]} 3. Bc4 {[%clk 0:02:56]} 3... Nc6 {[%clk 0:02:57.4]}
4. Nf3 {[%clk 0:02:54.8]} 4... d6 {[%clk 0:02:52.1]} 5. Nxd4 {[%clk 0:02:53.1]}
5... Nf6 {[%clk 0:02:50]} 6. Nc3 {[%clk 0:02:53.4]} 6... Be7 {[%clk 0:02:49.9]}
7. Bf4 {[%clk 0:02:52.7]} 7... O-O {[%clk 0:02:50.3]} 8. f3 {[%clk 0:02:49.1]}
8... h6 {[%clk 0:02:48.9]} 9. Nf5 {[%clk 0:02:47.3]} 9... Bxf5 {[%clk
0:02:47.4]} 10. exf5 {[%clk 0:02:47.5]} 10... Re8 {[%clk 0:02:45.9]} 11. O-O
{[%clk 0:02:46.7]} 11... Ne5 {[%clk 0:02:43.5]} 12. Bb3 {[%clk 0:02:44.7]} 12...
c5 {[%clk 0:02:34]} 13. Nd5 {[%clk 0:02:27.4]} 13... c4 {[%clk 0:02:28.1]} 14.
Ba4 {[%clk 0:02:08.2]} 14... Rf8 {[%clk 0:02:26.4]} 15. c3 {[%clk 0:01:44.3]}
15... Nd3 {[%clk 0:02:12.2]} 16. Nxe7+ {[%clk 0:01:42.2]} 16... Qxe7 {[%clk
0:02:10.7]} 17. Qd2 {[%clk 0:01:37.2]} 17... Nd5 {[%clk 0:02:06.1]} 18. Bg3
{[%clk 0:01:18.8]} 18... Qe3+ {[%clk 0:01:07]} 19. Qxe3 {[%clk 0:01:18.3]} 19...
Nxe3 {[%clk 0:01:07.9]} 20. Bxd6 {[%clk 0:01:16.4]} 20... Nxf1 {[%clk
0:01:07.4]} 21. Bxf8 {[%clk 0:01:04.2]} 21... Kxf8 {[%clk 0:01:03.6]} 22. Kxf1
{[%clk 0:00:58.7]} 22... Nxb2 {[%clk 0:01:04.1]} 23. Bc2 {[%clk 0:00:58.5]}
23... b6 {[%clk 0:00:51.4]} 24. Ke2 {[%clk 0:00:50.7]} 24... Re8+ {[%clk
0:00:47.2]} 25. Kd2 {[%clk 0:00:50.9]} 25... Rd8+ {[%clk 0:00:47.5]} 26. Ke2
{[%clk 0:00:51.3]} 26... Nd3 {[%clk 0:00:46.9]} 27. g3 {[%clk 0:00:38.3]} 27...
Nc5 {[%clk 0:00:45.5]} 28. Rb1 {[%clk 0:00:33]} 28... Ke7 {[%clk 0:00:41.5]} 29.
Rb4 {[%clk 0:00:32.9]} 29... Kd6 {[%clk 0:00:38.1]} 30. Rxc4 {[%clk 0:00:32.3]}
30... Re8+ {[%clk 0:00:38.8]} 31. Kd2 {[%clk 0:00:29.9]} 31... Re7 {[%clk
0:00:33.5]} 32. Rd4+ {[%clk 0:00:30.1]} 32... Kc7 {[%clk 0:00:33.7]} 33. f6
{[%clk 0:00:26]} 33... gxf6 {[%clk 0:00:32.8]} 34. Rh4 {[%clk 0:00:26.2]} 34...
Rd7+ {[%clk 0:00:30.5]} 35. Ke2 {[%clk 0:00:26.6]} 35... Re7+ {[%clk 0:00:29.2]}
36. Kd2 {[%clk 0:00:27.1]} 36... Rd7+ {[%clk 0:00:29.5]} 37. Ke3 {[%clk
0:00:27.1]} 37... Re7+ {[%clk 0:00:27.9]} 38. Kf2 {[%clk 0:00:25.6]} 38... Rd7
{[%clk 0:00:28.3]} 39. Ke2 {[%clk 0:00:25.1]} 39... Re7+ {[%clk 0:00:28.5]} 40.
Kd1 {[%clk 0:00:20.8]} 40... Re3 {[%clk 0:00:25]} 41. f4 {[%clk 0:00:17.2]}
41... Rxc3 {[%clk 0:00:20.3]} 42. Rxh6 {[%clk 0:00:17.5]} 42... Nd7 {[%clk
0:00:19.6]} 43. Bf5 {[%clk 0:00:15.6]} 43... Ra3 {[%clk 0:00:15]} 44. Rh7 {[%clk
0:00:16.1]} 44... Kd6 {[%clk 0:00:08.7]} 45. Rxf7 {[%clk 0:00:13.2]} 45... Nc5
{[%clk 0:00:09.2]} 46. Rxf6+ {[%clk 0:00:13.7]} 46... Kd5 {[%clk 0:00:09.3]} 47.
Rf7 {[%clk 0:00:11.8]} 47... Rxa2 {[%clk 0:00:08.5]} 48. h4 {[%clk 0:00:11.9]}
48... Rg2 {[%clk 0:00:05.5]} 49. g4 {[%clk 0:00:11.3]} 49... Kd4 {[%clk
0:00:05.4]} 50. h5 {[%clk 0:00:11.6]} 50... Ke3 {[%clk 0:00:04.8]} 51. h6 {[%clk
0:00:11.1]} 51... Rh2 {[%clk 0:00:04.2]} 52. h7 {[%clk 0:00:11.5]} 52... Nb3
{[%clk 0:00:02.8]} 53. Re7+ {[%clk 0:00:10]} 53... Kf3 {[%clk 0:00:02.5]} 54.
Re8 {[%clk 0:00:08.3]} 54... Rd2+ {[%clk 0:00:02.2]} 55. Ke1 {[%clk 0:00:08.6]}
55... Rg2 {[%clk 0:00:02.5]} 56. Be4+ {[%clk 0:00:06.4]} 56... Kg3 {[%clk
0:00:02.1]} 57. Bxg2 {[%clk 0:00:07.3]} 1-0

[Event "Early-Titled-Tuesday-Blitz-March-19-2024"]
[Site "Chess.com"]
[Date "2024.03.19"]
[Round "11"]
[White "Mandaloriana19"]
[Black "Boorchess"]
[Result "0-1"]
[WhiteElo "2413"]
[BlackElo "2559"]
[TimeControl "180+1"]
[EndTime "10:07:19 PDT"]
[Termination "Boorchess won by checkmate"]

1. Nf3 {[%clk 0:02:56.2]} 1... d5 {[%clk 0:02:59.4]} 2. g3 {[%clk 0:02:56.9]}
2... Bg4 {[%clk 0:02:58.8]} 3. Bg2 {[%clk 0:02:57.2]} 3... c6 {[%clk 0:02:56.6]}
4. O-O {[%clk 0:02:57.3]} 4... Nd7 {[%clk 0:02:56.6]} 5. b4 {[%clk 0:02:57]}
5... e5 {[%clk 0:02:55.2]} 6. a3 {[%clk 0:02:57.4]} 6... Bd6 {[%clk 0:02:54]} 7.
Bb2 {[%clk 0:02:57.8]} 7... Ne7 {[%clk 0:02:53]} 8. d3 {[%clk 0:02:58.5]} 8...
O-O {[%clk 0:02:51.7]} 9. Nbd2 {[%clk 0:02:59.2]} 9... a5 {[%clk 0:02:45.5]} 10.
c4 {[%clk 0:02:54.2]} 10... f6 {[%clk 0:02:38.4]} 11. cxd5 {[%clk 0:02:52]}
11... cxd5 {[%clk 0:02:38.1]} 12. Qb3 {[%clk 0:02:52.2]} 12... axb4 {[%clk
0:02:25.7]} 13. axb4 {[%clk 0:02:51.9]} 13... Qb6 {[%clk 0:02:23.7]} 14. h3
{[%clk 0:02:39.7]} 14... Be6 {[%clk 0:02:22.2]} 15. Bc3 {[%clk 0:02:30]} 15...
Bf7 {[%clk 0:02:20.8]} 16. d4 {[%clk 0:02:28.5]} 16... e4 {[%clk 0:02:13.5]} 17.
Nh2 {[%clk 0:02:27.5]} 17... Nc6 {[%clk 0:02:11.8]} 18. e3 {[%clk 0:02:25.2]}
18... Qb5 {[%clk 0:02:03.9]} 19. Rfb1 {[%clk 0:02:21]} 19... Nb6 {[%clk
0:02:02.4]} 20. Bf1 {[%clk 0:02:20.3]} 20... Nc4 {[%clk 0:01:57.8]} 21. Nxc4
{[%clk 0:02:05.5]} 21... dxc4 {[%clk 0:01:57.3]} 22. Qc2 {[%clk 0:02:06.2]}
22... f5 {[%clk 0:01:56.5]} 23. Be2 {[%clk 0:02:04]} 23... Ne7 {[%clk
0:01:46.4]} 24. Nf1 {[%clk 0:01:59.6]} 24... b6 {[%clk 0:01:41.3]} 25. Nd2
{[%clk 0:01:58.2]} 25... Rfc8 {[%clk 0:01:24.4]} 26. Qb2 {[%clk 0:01:53.8]}
26... Qc6 {[%clk 0:01:12.8]} 27. b5 {[%clk 0:01:52]} 27... Qc7 {[%clk
0:01:12.4]} 28. Ra6 {[%clk 0:01:51]} 28... Bxg3 {[%clk 0:01:09.2]} 29. Rba1
{[%clk 0:01:36.6]} 29... Rxa6 {[%clk 0:01:03]} 30. bxa6 {[%clk 0:01:35.6]} 30...
Bd6 {[%clk 0:00:57.8]} 31. Qb5 {[%clk 0:01:30.7]} 31... Nd5 {[%clk 0:00:54.6]}
32. Nb1 {[%clk 0:01:11.9]} 32... Qe7 {[%clk 0:00:42.1]} 33. a7 {[%clk
0:01:07.1]} 33... Ra8 {[%clk 0:00:40.8]} 34. Qa6 {[%clk 0:01:05.6]} 34... Qg5+
{[%clk 0:00:39.7]} 35. Kf1 {[%clk 0:01:05.3]} 35... Bh2 {[%clk 0:00:34.2]} 36.
Ke1 {[%clk 0:01:02.7]} 36... Qg1+ {[%clk 0:00:17.8]} 37. Bf1 {[%clk 0:01:02.7]}
37... Bg3 {[%clk 0:00:16.6]} 38. Ra2 {[%clk 0:01:02.6]} 38... Nxe3 {[%clk
0:00:15.9]} 39. fxg3 {[%clk 0:00:44.2]} 39... Qxf1+ {[%clk 0:00:15.5]} 40. Kd2
{[%clk 0:00:44.8]} 40... Qxb1 {[%clk 0:00:10.2]} 41. Kxe3 {[%clk 0:00:37]} 41...
Qd3+ {[%clk 0:00:09.6]} 42. Kf2 {[%clk 0:00:36.2]} 42... Qf3+ {[%clk 0:00:09.7]}
43. Kg1 {[%clk 0:00:34.7]} 43... Qxg3+ {[%clk 0:00:09.9]} 44. Rg2 {[%clk
0:00:33.1]} 44... Qxc3 {[%clk 0:00:09.6]} 45. Qb7 {[%clk 0:00:32.9]} 45... Qxd4+
{[%clk 0:00:09.7]} 46. Kh1 {[%clk 0:00:31.7]} 46... Qd8 {[%clk 0:00:06.8]} 47.
Rd2 {[%clk 0:00:28.6]} 47... Qe8 {[%clk 0:00:06.2]} 48. Qxb6 {[%clk 0:00:22.6]}
48... e3 {[%clk 0:00:06.5]} 49. Rb2 {[%clk 0:00:19.6]} 49... Bd5+ {[%clk
0:00:03.5]} 50. Kg1 {[%clk 0:00:18.9]} 50... e2 {[%clk 0:00:03.1]} 51. Rxe2
{[%clk 0:00:12]} 51... Qxe2 {[%clk 0:00:02.6]} 52. Qb8+ {[%clk 0:00:12.6]} 52...
Kf7 {[%clk 0:00:03]} 53. Qc7+ {[%clk 0:00:13.1]} 53... Kg6 {[%clk 0:00:03.6]}
54. Qd6+ {[%clk 0:00:13.2]} 54... Kg5 {[%clk 0:00:04]} 55. Qxd5 {[%clk
0:00:12.9]} 55... Qe4 {[%clk 0:00:04.5]} 56. Qd2+ {[%clk 0:00:10.7]} 56... f4
{[%clk 0:00:04.2]} 57. h4+ {[%clk 0:00:08]} 57... Kg4 {[%clk 0:00:04]} 58. Qd1+
{[%clk 0:00:07.6]} 58... Kxh4 {[%clk 0:00:04.1]} 59. Qe1+ {[%clk 0:00:07]} 59...
Qxe1+ {[%clk 0:00:04.1]} 60. Kg2 {[%clk 0:00:07.4]} 60... Rxa7 {[%clk
0:00:03.5]} 61. Kh2 {[%clk 0:00:07.3]} 61... Ra3 {[%clk 0:00:04.4]} 62. Kg2
{[%clk 0:00:07]} 62... Rg3+ {[%clk 0:00:04.5]} 63. Kh2 {[%clk 0:00:07.3]} 63...
Qg1# {[%clk 0:00:05.2]} 0-1

[Event "Early-Titled-Tuesday-Blitz-March-19-2024"]
[Site "Chess.com"]
[Date "2024.03.19"]
[Round "11"]
[White "Durarbayli"]
[Black "vasblesk"]
[Result "1/2-1/2"]
[WhiteElo "2966"]
[BlackElo "2784"]
[TimeControl "180+1"]
[EndTime "10:07:20 PDT"]
[Termination "Game drawn - insufficient material"]

1. e4 {[%clk 0:02:55.9]} 1... e5 {[%clk 0:02:59.6]} 2. Nf3 {[%clk 0:02:54.3]}
2... Nf6 {[%clk 0:02:59.9]} 3. d4 {[%clk 0:02:53.1]} 3... Nxe4 {[%clk
0:02:59.3]} 4. dxe5 {[%clk 0:02:53.8]} 4... d5 {[%clk 0:02:57.6]} 5. Nbd2 {[%clk
0:02:50.1]} 5... Nxd2 {[%clk 0:02:47.1]} 6. Bxd2 {[%clk 0:02:48.5]} 6... c5
{[%clk 0:02:43.7]} 7. c3 {[%clk 0:02:48.3]} 7... Nc6 {[%clk 0:02:43.5]} 8. Bd3
{[%clk 0:02:48.5]} 8... Be7 {[%clk 0:02:41.8]} 9. h3 {[%clk 0:02:48.1]} 9... O-O
{[%clk 0:02:41.4]} 10. Qe2 {[%clk 0:02:48.2]} 10... Re8 {[%clk 0:02:37.9]} 11.
O-O {[%clk 0:02:45.9]} 11... g6 {[%clk 0:02:29.7]} 12. Rae1 {[%clk 0:02:45.4]}
12... Qc7 {[%clk 0:02:15.7]} 13. Bf4 {[%clk 0:02:42.3]} 13... Be6 {[%clk
0:02:07.1]} 14. Nh2 {[%clk 0:02:42.5]} 14... Qd7 {[%clk 0:02:04.2]} 15. Qf3
{[%clk 0:02:38.3]} 15... Bf8 {[%clk 0:01:44.9]} 16. Ng4 {[%clk 0:02:37.8]} 16...
Bxg4 {[%clk 0:01:44.2]} 17. hxg4 {[%clk 0:02:38.5]} 17... Bg7 {[%clk 0:01:44.6]}
18. Qg3 {[%clk 0:02:37.8]} 18... c4 {[%clk 0:01:29.6]} 19. Bc2 {[%clk
0:02:35.9]} 19... b5 {[%clk 0:01:26]} 20. Re3 {[%clk 0:02:23]} 20... Nd8 {[%clk
0:01:20.3]} 21. Bg5 {[%clk 0:02:11.5]} 21... Ne6 {[%clk 0:01:15.8]} 22. Bf6
{[%clk 0:02:12]} 22... d4 {[%clk 0:01:05.8]} 23. cxd4 {[%clk 0:02:11.1]} 23...
Qxd4 {[%clk 0:01:06.7]} 24. Bxg7 {[%clk 0:02:00.4]} 24... Kxg7 {[%clk
0:01:01.1]} 25. b3 {[%clk 0:01:59]} 25... Rac8 {[%clk 0:00:55.4]} 26. bxc4
{[%clk 0:01:58.1]} 26... bxc4 {[%clk 0:00:55.4]} 27. Rd1 {[%clk 0:01:56.3]}
27... Qb2 {[%clk 0:00:55.1]} 28. Rc3 {[%clk 0:01:30.9]} 28... Red8 {[%clk
0:00:43.2]} 29. Rxd8 {[%clk 0:01:26.9]} 29... Rxd8 {[%clk 0:00:44.1]} 30. Rxc4
{[%clk 0:01:24.1]} 30... Qxa2 {[%clk 0:00:43.3]} 31. Qc3 {[%clk 0:01:13.4]}
31... Qa6 {[%clk 0:00:39.1]} 32. f4 {[%clk 0:01:10.9]} 32... Qb6+ {[%clk
0:00:37.9]} 33. Kh2 {[%clk 0:01:09.6]} 33... Rd4 {[%clk 0:00:09.1]} 34. Rc6
{[%clk 0:01:00.3]} 34... Qb4 {[%clk 0:00:08.1]} 35. f5 {[%clk 0:00:59.6]} 35...
gxf5 {[%clk 0:00:06.7]} 36. Qxb4 {[%clk 0:00:57.3]} 36... Rxb4 {[%clk
0:00:06.4]} 37. gxf5 {[%clk 0:00:57.9]} 37... Nd4 {[%clk 0:00:07]} 38. f6+
{[%clk 0:00:58.2]} 38... Kh6 {[%clk 0:00:07.6]} 39. Rc7 {[%clk 0:00:53.5]} 39...
Nxc2 {[%clk 0:00:07.9]} 40. Rxc2 {[%clk 0:00:54.4]} 40... Re4 {[%clk 0:00:07.6]}
41. Rc7 {[%clk 0:00:53.2]} 41... Rxe5 {[%clk 0:00:03.8]} 42. Rxf7 {[%clk
0:00:51.9]} 42... Kg6 {[%clk 0:00:04.3]} 43. Rxa7 {[%clk 0:00:49.5]} 43... Rf5
{[%clk 0:00:04.6]} 44. Rg7+ {[%clk 0:00:48.8]} 44... Kxf6 {[%clk 0:00:03]} 45.
Rxh7 {[%clk 0:00:49]} 45... Ra5 {[%clk 0:00:03.8]} 46. Kh3 {[%clk 0:00:48.8]}
46... Kg6 {[%clk 0:00:04.2]} 47. Rb7 {[%clk 0:00:48.6]} 47... Ra3+ {[%clk
0:00:05.1]} 48. Kh4 {[%clk 0:00:48.6]} 48... Ra2 {[%clk 0:00:04.9]} 49. Rb6+
{[%clk 0:00:48.6]} 49... Kg7 {[%clk 0:00:04.3]} 50. g3 {[%clk 0:00:48.9]} 50...
Ra5 {[%clk 0:00:04.5]} 51. Re6 {[%clk 0:00:48.2]} 51... Rc5 {[%clk 0:00:04.2]}
52. Kg4 {[%clk 0:00:48.1]} 52... Rb5 {[%clk 0:00:04.7]} 53. Re4 {[%clk
0:00:48.1]} 53... Ra5 {[%clk 0:00:05.1]} 54. Rf4 {[%clk 0:00:48.5]} 54... Kg6
{[%clk 0:00:05.5]} 55. Rb4 {[%clk 0:00:47.5]} 55... Ra6 {[%clk 0:00:05.9]} 56.
Kf4 {[%clk 0:00:47.3]} 56... Rf6+ {[%clk 0:00:06.1]} 57. Kg4 {[%clk 0:00:48]}
57... Ra6 {[%clk 0:00:06.4]} 58. Kh4 {[%clk 0:00:48.9]} 58... Re6 {[%clk
0:00:06.3]} 59. g4 {[%clk 0:00:49.6]} 59... Rc6 {[%clk 0:00:06.2]} 60. Rb5
{[%clk 0:00:50.1]} 60... Ra6 {[%clk 0:00:06]} 61. Rg5+ {[%clk 0:00:50.2]} 61...
Kh6 {[%clk 0:00:06.5]} 62. Rg8 {[%clk 0:00:49.9]} 62... Kh7 {[%clk 0:00:06.4]}
63. Rd8 {[%clk 0:00:49.4]} 63... Kg6 {[%clk 0:00:07.3]} 64. Rg8+ {[%clk
0:00:48.7]} 64... Kh7 {[%clk 0:00:07.2]} 65. Rg5 {[%clk 0:00:49.6]} 65... Kh6
{[%clk 0:00:07.6]} 66. Rc5 {[%clk 0:00:48.2]} 66... Kg6 {[%clk 0:00:07.8]} 67.
Rc3 {[%clk 0:00:45.7]} 67... Rb6 {[%clk 0:00:07.2]} 68. Kg3 {[%clk 0:00:46.2]}
68... Ra6 {[%clk 0:00:07.5]} 69. Rc4 {[%clk 0:00:46.1]} 69... Kg5 {[%clk
0:00:06.7]} 70. Rc5+ {[%clk 0:00:46.1]} 70... Kg6 {[%clk 0:00:06.7]} 71. Kf4
{[%clk 0:00:47]} 71... Ra4+ {[%clk 0:00:06.6]} 72. Kg3 {[%clk 0:00:46.8]} 72...
Ra3+ {[%clk 0:00:05.9]} 73. Kh4 {[%clk 0:00:47.2]} 73... Ra6 {[%clk 0:00:06.8]}
74. Rc8 {[%clk 0:00:41.5]} 74... Rb6 {[%clk 0:00:06]} 75. Ra8 {[%clk 0:00:41.1]}
75... Rc6 {[%clk 0:00:06]} 76. Rg8+ {[%clk 0:00:40.8]} 76... Kh7 {[%clk
0:00:05.9]} 77. Rb8 {[%clk 0:00:40.4]} 77... Kh6 {[%clk 0:00:06.5]} 78. g5+
{[%clk 0:00:40]} 78... Kg6 {[%clk 0:00:06.8]} 79. Rb4 {[%clk 0:00:40]} 79... Ra6
{[%clk 0:00:07.1]} 80. Kg4 {[%clk 0:00:40.6]} 80... Rc6 {[%clk 0:00:07.4]} 81.
Rf4 {[%clk 0:00:40.9]} 81... Ra6 {[%clk 0:00:07.9]} 82. Rf6+ {[%clk 0:00:41.8]}
82... Rxf6 {[%clk 0:00:08]} 83. gxf6 {[%clk 0:00:42.7]} 83... Kxf6 {[%clk
0:00:08.9]} 1/2-1/2